[Event "Titled Tuesday Blitz October 31 Early 2023"]
[White "Martinez Alcantara, Jose Eduardo"]
[Black "Molina, Roberto Junio Brito"]
[WhiteFideId "3805662"]
[BlackFideId "2109450"]
[WhiteElo "3135"]
[BlackElo "2823"]
[Result "0-1"]
[Round "6"]
[TimeControl "180+1"]
[Date "2023.10.31"]
[WhiteClock "0:00:00"]
[BlackClock "0:00:11"]
[Board "7"]

1. e4 {[%clk 0:03:00]}  c6 {[%clk 0:02:59]} 2. d4 {[%clk 0:03:00]}  d5 {[%clk 0:03:00]} 3. e5 {[%clk 0:03:01]}  Bf5 {[%clk 0:03:00]} 4. h4 {[%clk 0:03:01]}  Qb6 {[%clk 0:02:59]} 5. Nc3 {[%clk 0:03:01]}  h6 {[%clk 0:02:59]} 6. g4 {[%clk 0:02:57]}  Bd7 {[%clk 0:02:59]} 7. h5 {[%clk 0:02:51]}  e6 {[%clk 0:02:58]} 8. Na4 {[%clk 0:02:45]}  Qa5+ {[%clk 0:02:56]} 9. c3 {[%clk 0:02:45]}  Qc7 {[%clk 0:02:57]} 10. Be3 {[%clk 0:02:36]}  b6 {[%clk 0:02:57]} 11. b4 {[%clk 0:02:30]}  a5 {[%clk 0:02:56]} 12. a3 {[%clk 0:02:30]}  Ne7 {[%clk 0:02:53]} 13. f4 {[%clk 0:02:28]}  Nc8 {[%clk 0:02:46]} 14. Nf3 {[%clk 0:02:28]}  Qa7 {[%clk 0:02:34]} 15. b5 {[%clk 0:01:56]}  cxb5 {[%clk 0:02:31]} 16. Nb2 {[%clk 0:01:57]}  Qc7 {[%clk 0:02:28]} 17. Bd2 {[%clk 0:01:57]}  Na7 {[%clk 0:02:19]} 18. Bd3 {[%clk 0:01:58]}  Be7 {[%clk 0:02:15]} 19. O-O {[%clk 0:01:58]}  Nbc6 {[%clk 0:02:15]} 20. Qe2 {[%clk 0:01:50]}  a4 {[%clk 0:02:06]} 21. f5 {[%clk 0:01:50]}  Na5 {[%clk 0:02:04]} 22. Nd1 {[%clk 0:01:42]}  Nc4 {[%clk 0:01:56]} 23. Bc1 {[%clk 0:01:42]}  O-O-O {[%clk 0:01:52]} 24. Ne3 {[%clk 0:01:43]}  Kb7 {[%clk 0:01:47]} 25. Ng2 {[%clk 0:01:42]}  Nc6 {[%clk 0:01:33]} 26. Nf4 {[%clk 0:01:43]}  N6a5 {[%clk 0:01:26]} 27. Bc2 {[%clk 0:01:43]}  Qc8 {[%clk 0:01:20]} 28. fxe6 {[%clk 0:01:42]}  fxe6 {[%clk 0:01:17]} 29. Ng6 {[%clk 0:01:42]}  Rhe8 {[%clk 0:01:17]} 30. g5 {[%clk 0:01:32]}  Bc6 {[%clk 0:01:09]} 31. gxh6 {[%clk 0:01:30]}  gxh6 {[%clk 0:01:10]} 32. Bxh6 {[%clk 0:01:24]}  Bxa3 {[%clk 0:01:10]} 33. Bg5 {[%clk 0:01:23]}  Rd7 {[%clk 0:01:07]} 34. Ra2 {[%clk 0:01:11]}  Nb3 {[%clk 0:00:50]} 35. h6 {[%clk 0:01:06]}  Rg8 {[%clk 0:00:48]} 36. Nfh4 {[%clk 0:01:07]}  Qe8 {[%clk 0:00:47]} 37. Bd3 {[%clk 0:01:00]}  Bf8 {[%clk 0:00:40]} 38. Qh5 {[%clk 0:00:56]}  Be7 {[%clk 0:00:38]} 39. Rg2 {[%clk 0:00:35]}  Bxg5 {[%clk 0:00:37]} 40. Qxg5 {[%clk 0:00:36]}  Rh7 {[%clk 0:00:36]} 41. Qf6 {[%clk 0:00:27]}  Rxh6 {[%clk 0:00:33]} 42. Rff2 {[%clk 0:00:22]}  Ka6 {[%clk 0:00:25]} 43. Rg3 {[%clk 0:00:22]}  Nc1 {[%clk 0:00:18]} 44. Bb1 {[%clk 0:00:18]}  a3 {[%clk 0:00:16]} 45. Qg5 {[%clk 0:00:18]}  Rh7 {[%clk 0:00:15]} 46. Qxc1 {[%clk 0:00:17]}  Rxh4 {[%clk 0:00:15]} 47. Bd3 {[%clk 0:00:16]}  Rh7 {[%clk 0:00:13]} 48. Rfg2 {[%clk 0:00:16]}  Rhg7 {[%clk 0:00:13]} 49. Qa1 {[%clk 0:00:11]}  Kb7 {[%clk 0:00:13]} 50. Qe1 {[%clk 0:00:09]}  Qd8 {[%clk 0:00:12]} 51. Qf2 {[%clk 0:00:09]}  Qc7 {[%clk 0:00:12]} 52. Qf6 {[%clk 0:00:09]}  Qf7 {[%clk 0:00:12]} 53. Rf2 {[%clk 0:00:09]}  Qxf6 {[%clk 0:00:11]} 54. exf6 {[%clk 0:00:10]}  Rf7 {[%clk 0:00:11]} 55. Kh2 {[%clk 0:00:10]}  a2 {[%clk 0:00:11]} 56. Rxa2 {[%clk 0:00:07]}  Rxf6 {[%clk 0:00:11]} 57. Rag2 {[%clk 0:00:08]}  Rg7 {[%clk 0:00:11]} 58. Bxc4 {[%clk 0:00:04]}  dxc4 {[%clk 0:00:10]} 59. Ne5 {[%clk 0:00:05]}  Rh7+ {[%clk 0:00:10]} 60. Kg1 {[%clk 0:00:05]}  Bxg2 {[%clk 0:00:10]} 61. Kxg2 {[%clk 0:00:06]}  Rf5 {[%clk 0:00:11]} 62. Rg6 {[%clk 0:00:00]}  Rxe5 {[%clk 0:00:11]} 0-1


[Site "https://www.chess.com"]

[Event "Titled Tuesday Blitz October 31 Early 2023"]
[White "Kamsky, Gata"]
[Black "Elsa167"]
[WhiteFideId "2000024"]
[WhiteElo "2816"]
[BlackElo "2993"]
[Result "1/2-1/2"]
[Round "6"]
[TimeControl "180+1"]
[Date "2023.10.31"]
[WhiteClock "0:00:11"]
[BlackClock "0:00:30"]
[Board "9"]

1. e4 {[%clk 0:03:00]}  e6 {[%clk 0:02:57]} 2. d4 {[%clk 0:02:59]}  d5 {[%clk 0:02:58]} 3. exd5 {[%clk 0:02:58]}  exd5 {[%clk 0:02:58]} 4. Nf3 {[%clk 0:02:59]}  Nf6 {[%clk 0:02:59]} 5. Bd3 {[%clk 0:02:54]}  Bd6 {[%clk 0:02:59]} 6. O-O {[%clk 0:02:54]}  O-O {[%clk 0:02:59]} 7. Bg5 {[%clk 0:02:53]}  c6 {[%clk 0:02:56]} 8. c3 {[%clk 0:02:53]}  Bg4 {[%clk 0:02:56]} 9. Nbd2 {[%clk 0:02:52]}  Nbd7 {[%clk 0:02:56]} 10. Re1 {[%clk 0:02:51]}  Qc7 {[%clk 0:02:56]} 11. Bh4 {[%clk 0:02:45]}  Rfe8 {[%clk 0:02:55]} 12. Qc2 {[%clk 0:02:44]}  Bh5 {[%clk 0:02:52]} 13. Bg3 {[%clk 0:02:38]}  Bxg3 {[%clk 0:02:49]} 14. hxg3 {[%clk 0:02:37]}  Bg6 {[%clk 0:02:49]} 15. Bxg6 {[%clk 0:02:17]}  hxg6 {[%clk 0:02:50]} 16. Ng5 {[%clk 0:02:17]}  Nh7 {[%clk 0:02:37]} 17. Nxh7 {[%clk 0:02:16]}  Kxh7 {[%clk 0:02:38]} 18. Nf3 {[%clk 0:02:15]}  Kg8 {[%clk 0:02:35]} 19. Qb3 {[%clk 0:02:11]}  Qb6 {[%clk 0:02:25]} 20. Qa3 {[%clk 0:02:11]}  Nf6 {[%clk 0:02:16]} 21. Ne5 {[%clk 0:02:05]}  Re6 {[%clk 0:02:14]} 22. Nd3 {[%clk 0:02:04]}  Rae8 {[%clk 0:02:06]} 23. Rxe6 {[%clk 0:01:40]}  Rxe6 {[%clk 0:02:07]} 24. Re1 {[%clk 0:01:40]}  Rxe1+ {[%clk 0:01:29]} 25. Nxe1 {[%clk 0:01:39]}  Qb5 {[%clk 0:01:23]} 26. Qxa7 {[%clk 0:00:35]}  Qe2 {[%clk 0:01:03]} 27. Qb8+ {[%clk 0:00:32]}  Kh7 {[%clk 0:01:03]} 28. Qe5 {[%clk 0:00:31]}  Qxb2 {[%clk 0:01:00]} 29. f3 {[%clk 0:00:16]}  Qxc3 {[%clk 0:00:48]} 30. g4 {[%clk 0:00:17]}  Nd7 {[%clk 0:00:38]} 31. Qe7 {[%clk 0:00:10]}  Qxd4+ {[%clk 0:00:37]} 32. Kf1 {[%clk 0:00:10]}  Ne5 {[%clk 0:00:32]} 33. Qh4+ {[%clk 0:00:09]}  Kg8 {[%clk 0:00:28]} 34. Qd8+ {[%clk 0:00:09]}  Kh7 {[%clk 0:00:28]} 35. Qh4+ {[%clk 0:00:10]}  Kg8 {[%clk 0:00:29]} 36. Qd8+ {[%clk 0:00:10]}  Kh7 {[%clk 0:00:30]} 37. Qh4+ {[%clk 0:00:11]} 1/2-1/2


[Site "https://www.chess.com"]

[Event "Titled Tuesday Blitz October 31 Early 2023"]
[White "Komov, Roman"]
[Black "Le, Tuan Minh"]
[WhiteFideId "24175714"]
[BlackFideId "12401153"]
[WhiteElo "2787"]
[BlackElo "2976"]
[Result "0-1"]
[Round "6"]
[TimeControl "180+1"]
[Date "2023.10.31"]
[WhiteClock "0:00:12"]
[BlackClock "0:00:06"]
[Board "11"]

1. e4 {[%clk 0:03:00]}  e5 {[%clk 0:02:50]} 2. Nf3 {[%clk 0:03:00]}  Nc6 {[%clk 0:02:50]} 3. Bc4 {[%clk 0:02:58]}  Bc5 {[%clk 0:02:49]} 4. c3 {[%clk 0:02:58]}  Nf6 {[%clk 0:02:49]} 5. d3 {[%clk 0:02:59]}  h6 {[%clk 0:02:48]} 6. Nbd2 {[%clk 0:02:59]}  d6 {[%clk 0:02:42]} 7. O-O {[%clk 0:02:56]}  O-O {[%clk 0:02:43]} 8. h3 {[%clk 0:02:56]}  a6 {[%clk 0:02:40]} 9. Bb3 {[%clk 0:02:56]}  Ba7 {[%clk 0:02:40]} 10. Re1 {[%clk 0:02:56]}  Ne7 {[%clk 0:02:38]} 11. d4 {[%clk 0:02:56]}  Ng6 {[%clk 0:02:38]} 12. Nf1 {[%clk 0:02:57]}  Re8 {[%clk 0:02:35]} 13. Ng3 {[%clk 0:02:57]}  c6 {[%clk 0:02:29]} 14. Bd2 {[%clk 0:02:55]}  Qc7 {[%clk 0:02:23]} 15. Qc1 {[%clk 0:02:53]}  Kh7 {[%clk 0:02:23]} 16. Bc2 {[%clk 0:02:48]}  c5 {[%clk 0:02:11]} 17. dxe5 {[%clk 0:02:30]}  dxe5 {[%clk 0:02:11]} 18. Nf5 {[%clk 0:02:31]}  Bxf5 {[%clk 0:02:00]} 19. exf5 {[%clk 0:02:29]}  Nf8 {[%clk 0:02:00]} 20. c4 {[%clk 0:02:24]}  Rad8 {[%clk 0:01:49]} 21. Bc3 {[%clk 0:02:23]}  N8d7 {[%clk 0:01:45]} 22. Qe3 {[%clk 0:02:15]}  Bb8 {[%clk 0:01:32]} 23. g3 {[%clk 0:02:12]}  b5 {[%clk 0:01:26]} 24. Rad1 {[%clk 0:02:04]}  b4 {[%clk 0:01:18]} 25. Bd2 {[%clk 0:02:03]}  e4 {[%clk 0:01:19]} 26. Nh2 {[%clk 0:01:54]}  Ne5 {[%clk 0:01:19]} 27. Ba4 {[%clk 0:01:39]}  Rd3 {[%clk 0:01:02]} 28. Qe2 {[%clk 0:01:38]}  Red8 {[%clk 0:01:02]} 29. Bf4 {[%clk 0:01:35]}  Qc8 {[%clk 0:00:56]} 30. Bxe5 {[%clk 0:01:22]}  Bxe5 {[%clk 0:00:56]} 31. Rxd3 {[%clk 0:01:22]}  Rxd3 {[%clk 0:00:54]} 32. Bc2 {[%clk 0:01:23]}  Rd8 {[%clk 0:00:47]} 33. Bxe4 {[%clk 0:01:20]}  Re8 {[%clk 0:00:39]} 34. Qd3 {[%clk 0:00:49]}  Bxb2 {[%clk 0:00:36]} 35. Ng4 {[%clk 0:00:45]}  Qc7 {[%clk 0:00:33]} 36. Nxf6+ {[%clk 0:00:43]}  Bxf6 {[%clk 0:00:34]} 37. Re2 {[%clk 0:00:43]}  a5 {[%clk 0:00:33]} 38. Bd5 {[%clk 0:00:43]}  Rd8 {[%clk 0:00:21]} 39. Qc2 {[%clk 0:00:40]}  Qd7 {[%clk 0:00:21]} 40. Re6 {[%clk 0:00:32]}  a4 {[%clk 0:00:18]} 41. Ra6 {[%clk 0:00:30]}  a3 {[%clk 0:00:19]} 42. Qe4 {[%clk 0:00:22]}  Re8 {[%clk 0:00:18]} 43. Re6 {[%clk 0:00:22]}  Rb8 {[%clk 0:00:15]} 44. Ra6 {[%clk 0:00:18]}  Kg8 {[%clk 0:00:13]} 45. Kg2 {[%clk 0:00:18]}  Kh8 {[%clk 0:00:10]} 46. h4 {[%clk 0:00:13]}  Re8 {[%clk 0:00:10]} 47. Qf3 {[%clk 0:00:13]}  Bd4 {[%clk 0:00:10]} 48. Bc6 {[%clk 0:00:13]}  Qc8 {[%clk 0:00:09]} 49. Ra8 {[%clk 0:00:12]}  Qxa8 {[%clk 0:00:07]} 50. Bxa8 {[%clk 0:00:13]}  b3 {[%clk 0:00:08]} 51. Qxb3 {[%clk 0:00:13]}  Rxa8 {[%clk 0:00:09]} 52. Qb7 {[%clk 0:00:12]}  Re8 {[%clk 0:00:09]} 53. Kf3 {[%clk 0:00:10]}  Re1 {[%clk 0:00:08]} 54. Qxf7 {[%clk 0:00:09]}  Rb1 {[%clk 0:00:02]} 55. Qe8+ {[%clk 0:00:10]}  Kh7 {[%clk 0:00:02]} 56. f6 {[%clk 0:00:11]}  Rb2 {[%clk 0:00:01]} 57. Qe4+ {[%clk 0:00:11]}  Kg8 {[%clk 0:00:01]} 58. Qe8+ {[%clk 0:00:11]}  Kh7 {[%clk 0:00:02]} 59. Qe4+ {[%clk 0:00:12]}  Kg8 {[%clk 0:00:02]} 60. Qd5+ {[%clk 0:00:12]}  Kf8 {[%clk 0:00:02]} 61. fxg7+ {[%clk 0:00:13]}  Kxg7 {[%clk 0:00:03]} 62. Qd7+ {[%clk 0:00:13]}  Kf6 {[%clk 0:00:03]} 63. Kg4 {[%clk 0:00:13]}  Rxa2 {[%clk 0:00:03]} 64. Qc6+ {[%clk 0:00:13]}  Ke7 {[%clk 0:00:03]} 65. f4 {[%clk 0:00:14]}  Rb2 {[%clk 0:00:02]} 66. Qc7+ {[%clk 0:00:14]}  Ke6 {[%clk 0:00:02]} 67. Qc8+ {[%clk 0:00:15]}  Ke7 {[%clk 0:00:03]} 68. Qc7+ {[%clk 0:00:15]}  Ke8 {[%clk 0:00:04]} 69. Qc8+ {[%clk 0:00:15]}  Ke7 {[%clk 0:00:04]} 70. Kf5 {[%clk 0:00:15]}  a2 {[%clk 0:00:04]} 71. Qe6+ {[%clk 0:00:16]}  Kd8 {[%clk 0:00:05]} 72. Qa6 {[%clk 0:00:16]}  Kc7 {[%clk 0:00:05]} 73. Qa5+ {[%clk 0:00:16]}  Kb7 {[%clk 0:00:05]} 74. Ke6 {[%clk 0:00:16]}  Rb6+ {[%clk 0:00:05]} 75. Kd5 {[%clk 0:00:12]}  a1=Q {[%clk 0:00:06]} 0-1


[Site "https://www.chess.com"]

[Event "Titled Tuesday Blitz October 31 Early 2023"]
[White "Sjugirov, Sanan"]
[Black "Saydaliev, Saidakbar"]
[WhiteFideId "4189302"]
[BlackFideId "14203693"]
[WhiteElo "2955"]
[BlackElo "2782"]
[Result "1-0"]
[Round "6"]
[TimeControl "180+1"]
[Date "2023.10.31"]
[WhiteClock "0:00:04"]
[BlackClock "0:00:00"]
[Board "13"]

1. d4 {[%clk 0:03:00]}  Nf6 {[%clk 0:02:58]} 2. c4 {[%clk 0:03:01]}  e6 {[%clk 0:02:57]} 3. Nf3 {[%clk 0:03:02]}  d5 {[%clk 0:02:57]} 4. g3 {[%clk 0:03:02]}  dxc4 {[%clk 0:02:56]} 5. Bg2 {[%clk 0:03:02]}  Bb4+ {[%clk 0:02:57]} 6. Bd2 {[%clk 0:03:00]}  a5 {[%clk 0:02:56]} 7. Qc2 {[%clk 0:02:54]}  b5 {[%clk 0:02:47]} 8. a4 {[%clk 0:02:50]}  c6 {[%clk 0:02:44]} 9. axb5 {[%clk 0:02:49]}  Bxd2+ {[%clk 0:02:44]} 10. Qxd2 {[%clk 0:02:50]}  cxb5 {[%clk 0:02:45]} 11. Qg5 {[%clk 0:02:50]}  O-O {[%clk 0:02:08]} 12. Qxb5 {[%clk 0:02:50]}  Qd5 {[%clk 0:01:49]} 13. Qa4 {[%clk 0:02:41]}  Bd7 {[%clk 0:01:42]} 14. Qa3 {[%clk 0:02:37]}  Bc6 {[%clk 0:01:28]} 15. O-O {[%clk 0:02:31]}  a4 {[%clk 0:01:08]} 16. Rc1 {[%clk 0:02:25]}  Nbd7 {[%clk 0:01:07]} 17. Nbd2 {[%clk 0:02:18]}  Nb6 {[%clk 0:01:03]} 18. Qc5 {[%clk 0:02:13]}  Rfb8 {[%clk 0:00:56]} 19. Rc2 {[%clk 0:01:40]}  Nfd7 {[%clk 0:00:38]} 20. Qa3 {[%clk 0:01:29]}  Qb5 {[%clk 0:00:38]} 21. Rac1 {[%clk 0:01:25]}  h6 {[%clk 0:00:29]} 22. e3 {[%clk 0:01:17]}  Nf6 {[%clk 0:00:29]} 23. Nxc4 {[%clk 0:01:05]}  Nxc4 {[%clk 0:00:27]} 24. Rxc4 {[%clk 0:01:06]}  Bd5 {[%clk 0:00:27]} 25. R4c2 {[%clk 0:00:59]}  Be4 {[%clk 0:00:23]} 26. Rc7 {[%clk 0:00:54]}  Qd5 {[%clk 0:00:20]} 27. Ne1 {[%clk 0:00:47]}  Bxg2 {[%clk 0:00:18]} 28. Nxg2 {[%clk 0:00:48]}  Qf3 {[%clk 0:00:17]} 29. Ne1 {[%clk 0:00:43]}  Qf5 {[%clk 0:00:13]} 30. R7c5 {[%clk 0:00:33]}  Nd5 {[%clk 0:00:12]} 31. Qd3 {[%clk 0:00:28]}  Qf6 {[%clk 0:00:09]} 32. Qe2 {[%clk 0:00:23]}  a3 {[%clk 0:00:08]} 33. bxa3 {[%clk 0:00:24]}  Rxa3 {[%clk 0:00:09]} 34. Nd3 {[%clk 0:00:21]}  g6 {[%clk 0:00:08]} 35. h4 {[%clk 0:00:19]}  h5 {[%clk 0:00:08]} 36. Ne5 {[%clk 0:00:17]}  Kg7 {[%clk 0:00:07]} 37. Kg2 {[%clk 0:00:16]}  Rab3 {[%clk 0:00:07]} 38. R1c2 {[%clk 0:00:16]}  Rb1 {[%clk 0:00:07]} 39. Qf3 {[%clk 0:00:15]}  Qxf3+ {[%clk 0:00:06]} 40. Nxf3 {[%clk 0:00:15]}  R8b2 {[%clk 0:00:05]} 41. Nd2 {[%clk 0:00:13]}  Rxc2 {[%clk 0:00:05]} 42. Rxc2 {[%clk 0:00:14]}  Re1 {[%clk 0:00:05]} 43. Nc4 {[%clk 0:00:11]}  Kf6 {[%clk 0:00:05]} 44. Rb2 {[%clk 0:00:09]}  Kf5 {[%clk 0:00:04]} 45. Nd6+ {[%clk 0:00:08]}  Kf6 {[%clk 0:00:03]} 46. Rb7 {[%clk 0:00:07]}  e5 {[%clk 0:00:00]} 47. Rb5 {[%clk 0:00:04]} 1-0


[Site "https://www.chess.com"]

[Event "Titled Tuesday Blitz October 31 Early 2023"]
[White "Sokolovsky, Yahli"]
[Black "Daneshvar, Bardiya"]
[WhiteFideId "2820242"]
[BlackFideId "12576468"]
[WhiteElo "2779"]
[BlackElo "2949"]
[Result "0-1"]
[Round "6"]
[TimeControl "180+1"]
[Date "2023.10.31"]
[WhiteClock "0:00:01"]
[BlackClock "0:02:08"]
[Board "14"]

1. b3 {[%clk 0:03:00]}  b6 {[%clk 0:02:59]} 2. Bb2 {[%clk 0:03:01]}  Bb7 {[%clk 0:03:00]} 3. e3 {[%clk 0:03:02]}  d6 {[%clk 0:03:00]} 4. d4 {[%clk 0:03:02]}  e6 {[%clk 0:03:01]} 5. Nf3 {[%clk 0:03:02]}  g6 {[%clk 0:03:01]} 6. d5 {[%clk 0:02:58]}  Nf6 {[%clk 0:03:02]} 7. dxe6 {[%clk 0:02:56]}  fxe6 {[%clk 0:03:02]} 8. Bc4 {[%clk 0:02:53]}  d5 {[%clk 0:03:02]} 9. Bb5+ {[%clk 0:02:49]}  c6 {[%clk 0:03:02]} 10. Bd3 {[%clk 0:02:49]}  Bg7 {[%clk 0:03:01]} 11. h4 {[%clk 0:02:41]}  Qe7 {[%clk 0:03:00]} 12. Nbd2 {[%clk 0:02:10]}  Nbd7 {[%clk 0:03:00]} 13. Ne5 {[%clk 0:02:11]}  Nh5 {[%clk 0:02:58]} 14. Ndf3 {[%clk 0:01:11]}  Qd6 {[%clk 0:02:53]} 15. g4 {[%clk 0:00:25]}  Nxe5 {[%clk 0:02:48]} 16. Nxe5 {[%clk 0:00:25]}  Bxe5 {[%clk 0:02:48]} 17. Bxe5 {[%clk 0:00:25]}  Qxe5 {[%clk 0:02:49]} 18. gxh5 {[%clk 0:00:26]}  gxh5 {[%clk 0:02:48]} 19. Rg1 {[%clk 0:00:21]}  O-O-O {[%clk 0:02:47]} 20. Rg5 {[%clk 0:00:13]}  Qc3+ {[%clk 0:02:46]} 21. Kf1 {[%clk 0:00:14]}  h6 {[%clk 0:02:46]} 22. Rg6 {[%clk 0:00:13]}  e5 {[%clk 0:02:41]} 23. Qe1 {[%clk 0:00:13]}  Qc5 {[%clk 0:02:38]} 24. Qe2 {[%clk 0:00:09]}  Kb8 {[%clk 0:02:35]} 25. Bf5 {[%clk 0:00:04]}  Rdf8 {[%clk 0:02:29]} 26. Qxh5 {[%clk 0:00:05]}  Qc3 {[%clk 0:02:28]} 27. Rd1 {[%clk 0:00:04]}  e4 {[%clk 0:02:27]} 28. Bg4 {[%clk 0:00:01]}  Qxc2 {[%clk 0:02:26]} 29. Be2 {[%clk 0:00:02]}  Ba6 {[%clk 0:02:25]} 30. Re1 {[%clk 0:00:02]}  Bxe2+ {[%clk 0:02:24]} 31. Rxe2 {[%clk 0:00:02]}  Qd1+ {[%clk 0:02:24]} 32. Kg2 {[%clk 0:00:03]}  Rxf2+ {[%clk 0:02:16]} 33. Kxf2 {[%clk 0:00:02]}  Rf8+ {[%clk 0:02:16]} 34. Kg3 {[%clk 0:00:02]}  Rf3+ {[%clk 0:02:14]} 35. Qxf3 {[%clk 0:00:02]}  exf3 {[%clk 0:02:13]} 36. Kxf3 {[%clk 0:00:03]}  Qf1+ {[%clk 0:02:10]} 37. Rf2 {[%clk 0:00:04]}  Qh3+ {[%clk 0:02:10]} 38. Ke2 {[%clk 0:00:03]}  Qxh4 {[%clk 0:02:09]} 39. Rgf6 {[%clk 0:00:02]}  Kb7 {[%clk 0:02:08]} 40. Kd2 {[%clk 0:00:02]}  h5 {[%clk 0:02:08]} 41. Rf7+ {[%clk 0:00:02]}  Ka6 {[%clk 0:02:08]} 42. Rc7 {[%clk 0:00:01]}  Qxf2+ {[%clk 0:02:08]} 0-1


[Site "https://www.chess.com"]

[Event "Titled Tuesday Blitz October 31 Early 2023"]
[White "Chigaev, Maksim"]
[Black "Taher, Yoseph Theolifus"]
[WhiteFideId "4108116"]
[BlackFideId "7105347"]
[WhiteElo "2923"]
[BlackElo "2771"]
[Result "1/2-1/2"]
[Round "6"]
[TimeControl "180+1"]
[Date "2023.10.31"]
[WhiteClock "0:00:04"]
[BlackClock "0:00:33"]
[Board "15"]

1. e4 {[%clk 0:02:55]}  c5 {[%clk 0:03:00]} 2. Ne2 {[%clk 0:02:55]}  g6 {[%clk 0:03:00]} 3. g3 {[%clk 0:02:55]}  Bg7 {[%clk 0:03:00]} 4. Bg2 {[%clk 0:02:56]}  Nc6 {[%clk 0:03:01]} 5. O-O {[%clk 0:02:54]}  e5 {[%clk 0:03:01]} 6. Nbc3 {[%clk 0:02:52]}  Nge7 {[%clk 0:03:01]} 7. f4 {[%clk 0:02:52]}  d6 {[%clk 0:03:01]} 8. d3 {[%clk 0:02:51]}  h5 {[%clk 0:03:02]} 9. h3 {[%clk 0:02:50]}  Be6 {[%clk 0:03:02]} 10. Nd5 {[%clk 0:02:48]}  Qd7 {[%clk 0:03:02]} 11. Kh2 {[%clk 0:02:47]}  f5 {[%clk 0:03:02]} 12. c4 {[%clk 0:02:39]}  h4 {[%clk 0:03:02]} 13. exf5 {[%clk 0:02:17]}  hxg3+ {[%clk 0:03:00]} 14. Nxg3 {[%clk 0:02:18]}  Nxf5 {[%clk 0:03:00]} 15. Ne4 {[%clk 0:02:19]}  O-O-O {[%clk 0:02:59]} 16. Ng5 {[%clk 0:02:17]}  Nh4 {[%clk 0:02:52]} 17. Nxe6 {[%clk 0:02:13]}  Qxe6 {[%clk 0:02:47]} 18. Be4 {[%clk 0:02:06]}  Nf5 {[%clk 0:02:29]} 19. Qg4 {[%clk 0:02:05]}  Rh7 {[%clk 0:02:20]} 20. fxe5 {[%clk 0:01:52]}  Nxe5 {[%clk 0:02:08]} 21. Qxf5 {[%clk 0:01:46]}  gxf5 {[%clk 0:01:59]} 22. Bxf5 {[%clk 0:01:46]}  Qxf5 {[%clk 0:01:56]} 23. Rxf5 {[%clk 0:01:47]}  Rdh8 {[%clk 0:01:53]} 24. Bf4 {[%clk 0:01:12]}  Rxh3+ {[%clk 0:01:49]} 25. Kg2 {[%clk 0:01:10]}  Rxd3 {[%clk 0:01:45]} 26. b3 {[%clk 0:00:58]}  Nxc4 {[%clk 0:01:37]} 27. bxc4 {[%clk 0:00:38]}  Bxa1 {[%clk 0:01:35]} 28. Bxd6 {[%clk 0:00:38]}  Rg8+ {[%clk 0:01:26]} 29. Kf1 {[%clk 0:00:38]}  Rd1+ {[%clk 0:01:22]} 30. Ke2 {[%clk 0:00:37]}  Rgg1 {[%clk 0:01:22]} 31. Bf4 {[%clk 0:00:21]}  Rge1+ {[%clk 0:01:15]} 32. Kf3 {[%clk 0:00:20]}  Rf1+ {[%clk 0:01:14]} 33. Kg4 {[%clk 0:00:18]}  Rd4 {[%clk 0:01:12]} 34. Rf8+ {[%clk 0:00:18]}  Kd7 {[%clk 0:01:09]} 35. Rf7+ {[%clk 0:00:19]}  Ke8 {[%clk 0:01:08]} 36. Rxb7 {[%clk 0:00:16]}  Rxc4 {[%clk 0:00:59]} 37. Kf5 {[%clk 0:00:08]}  Rd4 {[%clk 0:00:49]} 38. Nf6+ {[%clk 0:00:05]}  Kd8 {[%clk 0:00:32]} 39. Rb8+ {[%clk 0:00:03]}  Ke7 {[%clk 0:00:33]} 40. Rb7+ {[%clk 0:00:03]}  Kd8 {[%clk 0:00:32]} 41. Rb8+ {[%clk 0:00:03]}  Ke7 {[%clk 0:00:33]} 42. Rb7+ {[%clk 0:00:04]}  Kd8 {[%clk 0:00:33]} 1/2-1/2


[Site "https://www.chess.com"]

[Event "Titled Tuesday Blitz October 31 Early 2023"]
[White "Henriquez Villagra, Cristobal"]
[Black "Schmakel, Sam"]
[WhiteFideId "3409350"]
[BlackFideId "2039311"]
[WhiteElo "2898"]
[BlackElo "2744"]
[Result "1-0"]
[Round "6"]
[TimeControl "180+1"]
[Date "2023.10.31"]
[WhiteClock "0:01:14"]
[BlackClock "0:00:00"]
[Board "20"]

1. e4 {[%clk 0:02:59]}  e5 {[%clk 0:02:58]} 2. Nf3 {[%clk 0:02:59]}  Nc6 {[%clk 0:02:59]} 3. Bb5 {[%clk 0:02:59]}  a6 {[%clk 0:02:59]} 4. Ba4 {[%clk 0:03:00]}  Nf6 {[%clk 0:02:59]} 5. Nc3 {[%clk 0:02:59]}  d6 {[%clk 0:02:45]} 6. a3 {[%clk 0:02:57]}  g6 {[%clk 0:02:29]} 7. h3 {[%clk 0:02:38]}  Bg7 {[%clk 0:02:29]} 8. O-O {[%clk 0:02:38]}  O-O {[%clk 0:02:29]} 9. Re1 {[%clk 0:02:39]}  Nd4 {[%clk 0:02:16]} 10. Nxd4 {[%clk 0:02:20]}  exd4 {[%clk 0:02:16]} 11. Nd5 {[%clk 0:02:21]}  Nxd5 {[%clk 0:02:13]} 12. exd5 {[%clk 0:02:22]}  b5 {[%clk 0:01:53]} 13. Bb3 {[%clk 0:02:21]}  d3 {[%clk 0:01:48]} 14. Qf3 {[%clk 0:01:58]}  dxc2 {[%clk 0:01:27]} 15. Bxc2 {[%clk 0:01:57]}  Re8 {[%clk 0:01:26]} 16. Re3 {[%clk 0:01:53]}  Bd4 {[%clk 0:01:19]} 17. a4 {[%clk 0:01:38]}  Bxe3 {[%clk 0:01:14]} 18. fxe3 {[%clk 0:01:35]}  bxa4 {[%clk 0:01:08]} 19. Rxa4 {[%clk 0:01:34]}  Bd7 {[%clk 0:00:58]} 20. Rf4 {[%clk 0:01:34]}  f5 {[%clk 0:00:45]} 21. b3 {[%clk 0:01:34]}  a5 {[%clk 0:00:43]} 22. Bb2 {[%clk 0:01:34]}  Qe7 {[%clk 0:00:31]} 23. Bc3 {[%clk 0:01:23]}  Reb8 {[%clk 0:00:17]} 24. h4 {[%clk 0:01:22]}  Rc8 {[%clk 0:00:10]} 25. Qg3 {[%clk 0:01:17]}  c5 {[%clk 0:00:06]} 26. h5 {[%clk 0:01:17]}  Qf7 {[%clk 0:00:04]} 27. hxg6 {[%clk 0:01:13]}  Qxg6 {[%clk 0:00:03]} 28. Qh2 {[%clk 0:01:13]}  c4 {[%clk 0:00:03]} 29. bxc4 {[%clk 0:01:13]}  a4 {[%clk 0:00:03]} 30. Rh4 {[%clk 0:01:13]}  a3 {[%clk 0:00:00]} 31. Rh6 {[%clk 0:01:14]} 1-0


[Site "https://www.chess.com"]

[Event "Titled Tuesday Blitz October 31 Early 2023"]
[White "Volkov, Maksim"]
[Black "Madaminov, Mukhiddin"]
[WhiteFideId "54123070"]
[BlackFideId "14210703"]
[WhiteElo "2661"]
[BlackElo "2852"]
[Result "0-1"]
[Round "6"]
[TimeControl "180+1"]
[Date "2023.10.31"]
[WhiteClock "0:00:02"]
[BlackClock "0:01:01"]
[Board "25"]

1. d4 {[%clk 0:03:00]}  e6 {[%clk 0:02:59]} 2. c4 {[%clk 0:03:00]}  b6 {[%clk 0:03:00]} 3. e4 {[%clk 0:02:58]}  Bb4+ {[%clk 0:02:59]} 4. Bd2 {[%clk 0:02:57]}  Bxd2+ {[%clk 0:02:59]} 5. Nxd2 {[%clk 0:02:47]}  d5 {[%clk 0:03:00]} 6. exd5 {[%clk 0:02:36]}  exd5 {[%clk 0:02:59]} 7. Ngf3 {[%clk 0:02:36]}  Ne7 {[%clk 0:02:43]} 8. Bd3 {[%clk 0:02:29]}  O-O {[%clk 0:02:42]} 9. O-O {[%clk 0:02:28]}  Nbc6 {[%clk 0:02:39]} 10. Re1 {[%clk 0:02:19]}  Bf5 {[%clk 0:02:31]} 11. Bf1 {[%clk 0:02:12]}  Nb4 {[%clk 0:02:23]} 12. Nh4 {[%clk 0:02:02]}  Bc2 {[%clk 0:02:17]} 13. Qg4 {[%clk 0:01:52]}  Ng6 {[%clk 0:02:09]} 14. Nhf3 {[%clk 0:01:42]}  Bd3 {[%clk 0:01:57]} 15. a3 {[%clk 0:01:32]}  Bxf1 {[%clk 0:01:56]} 16. Rxf1 {[%clk 0:01:33]}  Nd3 {[%clk 0:01:47]} 17. b3 {[%clk 0:01:31]}  Ngf4 {[%clk 0:01:35]} 18. Ne5 {[%clk 0:01:14]}  dxc4 {[%clk 0:01:29]} 19. Nxd3 {[%clk 0:01:05]}  Nxd3 {[%clk 0:01:23]} 20. bxc4 {[%clk 0:01:06]}  f5 {[%clk 0:01:17]} 21. Qg3 {[%clk 0:00:40]}  Qxd4 {[%clk 0:01:17]} 22. Qxc7 {[%clk 0:00:23]}  Ne5 {[%clk 0:01:15]} 23. Rad1 {[%clk 0:00:21]}  Rf7 {[%clk 0:01:16]} 24. Nb3 {[%clk 0:00:17]}  Qxf2+ {[%clk 0:01:03]} 25. Rxf2 {[%clk 0:00:18]}  Rxc7 {[%clk 0:01:03]} 26. c5 {[%clk 0:00:18]}  Ng4 {[%clk 0:01:01]} 27. Rc2 {[%clk 0:00:02]}  Ne3 {[%clk 0:01:01]} 0-1


[Site "https://www.chess.com"]